fUST/lending_fUST_20250806
["ID","MTS","AMOUNT","RATE_DAILY","PERIOD"]
[377501782,1754431212644,-151.69761901,0.00025275,2]
[377501784,1754431216492,-152.0,0.00025275,2]
[377501785,1754431218543,-391.75580963,0.00025275,2]
[377501786,1754431224784,-194.52531801,0.00025275,2]
[377501787,1754431226921,-160.29761901,0.00025275,2]
[377501788,1754431230999,-212.02116717,0.00025275,2]
[377501796,1754431330153,-265.78068782,0.00025074,2]
[377501801,1754431333736,-173.09147578,0.00025074,2]
[377501814,1754431337783,-153.52,0.00025074,2]
[377501817,1754431339957,-168.29021739,0.00025074,2]
[377501819,1754431343248,-182.103353,0.00024871,2]
[377501820,1754431343272,-10.01851115,0.00025074,2]
[377501822,1754431350150,-166.47829061,0.00025074,2]
[377501823,1754431352208,-491.53315428,0.00025074,2]
[377501824,1754431356514,-157.4253263,0.00025074,2]
[377501825,1754431419134,220.10612221,8.6e-07,2]
[377501834,1754431662202,200.0,0.000301,120]
[377501841,1754431812425,213.92824308,0.00023175,2]
[377501918,1754431832458,-5131.89887042,0.00025074,2]
[377502037,1754431838449,-3281.96346625,0.00025074,2]
[377502039,1754431838458,-300.0,0.00025735,2]
[377502040,1754431838467,-1774.78038873,0.00025736,2]
[377502041,1754431838477,-500.0,0.00025757,2]
[377502042,1754431838487,-500.0,0.00025757,2]
[377502043,1754431838496,-500.0,0.00025757,2]
[377502044,1754431838505,-500.0,0.00025757,2]
[377502045,1754431838514,-630.14611442,0.00025757,2]
[377502046,1754431838525,-500.0,0.00025757,2]
[377502047,1754431838534,-500.0,0.00025757,2]
[377502048,1754431838544,-250.0,0.00025757,2]
[377502049,1754431838553,-89.56159009,0.00025757,2]
[377502050,1754431838564,-410.43840991,0.00025757,2]
[377502051,1754431838572,-5271.56159009,0.00025758,2]
[377502052,1754431838584,-2084.59169195,0.00025758,2]
[377502053,1754431838593,-1200.0,0.00025758,2]
[377502054,1754431838602,-157.20420755,0.0002576,11]
[377502055,1754431838611,-131.60410051,0.00025762,2]
[377502056,1754431838624,-2938.69996,0.00025762,2]
[377502057,1754431838651,-21829.69593949,0.00025762,2]
[377502058,1754431838667,-227.71226716,0.00025835,2]
[377502059,1754431838688,-3977.3406367,0.00025836,2]
[377502060,1754431838705,-625.00548,0.00026124,2]
[377502061,1754431838715,-181.023194,0.00026609,2]
[377502062,1754431838734,-325.0,0.00026646,3]
[377502063,1754431838761,-325.0,0.00026646,3]
[377502065,1754431838775,-325.0,0.00026646,3]
[377502067,1754431838784,-325.0,0.00026646,3]
[377502069,1754431838793,-325.0,0.00026646,3]
[377502071,1754431838802,-325.0,0.00026646,3]
[377502072,1754431838812,-325.0,0.00026646,3]
[377502073,1754431838822,-325.0,0.00026646,3]
[377502074,1754431838831,-325.0,0.00026646,3]
[377502075,1754431838841,-325.0,0.00026646,3]
[377502076,1754431838850,-325.0,0.00026646,3]
[377502077,1754431838860,-325.0,0.00026646,3]
[377502078,1754431838870,-187.89274369,0.00026646,3]
[377502079,1754431838880,-325.0,0.00026646,3]
[377502081,1754431838889,-325.0,0.00026646,3]
[377502083,1754431838899,-12655.02535889,0.00026646,3]
[377502085,1754431838909,-312.16666667,0.00026646,3]
[377502086,1754431838919,-216.4206905,0.00026646,3]
[377502087,1754431838928,-842.25606042,0.00026646,3]
[377502088,1754431838938,-160.0,0.00026646,3]
[377502089,1754431838947,-461.15695721,0.00026646,3]
[377502090,1754431838957,-160.0,0.00026646,3]
[377502092,1754431838967,-160.0,0.00026646,3]
[377502093,1754431838977,-336.049506,0.00026676,2]
[377502095,1754431838986,-166.0,0.00026689,3]
[377502097,1754431838996,-172.0,0.00026689,3]
[377502098,1754431839005,-166.0,0.00026689,3]
[377502099,1754431839014,-166.0,0.00026689,3]
[377502100,1754431839023,-166.0,0.00026689,3]
[377502101,1754431839032,-152.0,0.00026689,3]
[377502102,1754431839043,-166.0,0.00026689,3]
[377502104,1754431839052,-152.0,0.00026689,3]
[377502105,1754431839061,-152.0,0.00026689,3]
[377502106,1754431839071,-155.0,0.00026689,3]
[377502107,1754431839081,-155.0,0.00026689,3]
[377502108,1754431839091,-155.0,0.00026689,3]
[377502109,1754431839100,-252.94087653,0.00026689,3]
[377502110,1754431839110,-152.0,0.00026689,3]
[377502111,1754431839120,-155.0,0.00026689,3]
[377502112,1754431839130,-1758.0,0.00026689,3]
[377502113,1754431839139,-155.0,0.00026689,3]
[377502114,1754431839149,-152.0,0.00026689,3]
[377502115,1754431839158,-1758.0,0.00026689,3]
[377502116,1754431839167,-152.0,0.00026689,3]
[377502117,1754431839177,-1758.0,0.00026689,3]
[377502118,1754431839187,-1758.0,0.00026689,3]
[377502119,1754431839197,-152.0,0.00026689,3]
[377502120,1754431839207,-1758.0,0.00026689,3]
[377502121,1754431839216,-152.0,0.00026689,3]
[377502122,1754431839227,-1758.0,0.00026689,3]
[377502123,1754431839236,-1758.0,0.00026689,3]
[377502124,1754431839247,-152.0,0.00026689,3]
[377502125,1754431839257,-1758.0,0.00026689,3]
[377502126,1754431839267,-152.0,0.00026689,3]
[377502127,1754431839276,-1758.0,0.00026689,3]
[377502128,1754431839286,-152.0,0.00026689,3]
[377502129,1754431839296,-152.0,0.00026689,3]
[377502130,1754431839306,-1758.0,0.00026689,3]
[377502131,1754431839316,-262.82781049,0.00026689,3]
[377502132,1754431839326,-152.0,0.00026689,3]
[377502133,1754431839336,-1758.0,0.00026689,3]
[377502134,1754431839346,-152.0,0.00026689,3]
[377502135,1754431839355,-1758.0,0.00026689,3]
[377502136,1754431839366,-1758.0,0.00026689,3]
[377502137,1754431839377,-154.39389526,0.00026689,3]
[377502138,1754431839391,-325.0,0.00026689,3]
[377502139,1754431839401,-325.0,0.00026689,3]
[377502140,1754431839410,-325.0,0.00026689,3]
[377502141,1754431839420,-217.11075,0.00026762,6]
[377502142,1754431839430,-293.46,0.00026841,10]
[377502143,1754431839443,-244.55,0.00026841,10]
[377502144,1754431839454,-203.79,0.00026841,10]
[377502145,1754431839464,-166.0,0.00026851,3]
[377502146,1754431839475,-174.25906298,0.00026851,3]
[377502147,1754431839485,-160.0,0.00026851,3]
[377502148,1754431839495,-160.0,0.00026851,3]
[377502149,1754431839505,-172.0,0.00026851,3]
[377502150,1754431839517,-162.70663404,0.00026851,3]
[377502151,1754431839527,-166.0,0.00026851,3]
[377502152,1754431839537,-166.0,0.00026851,3]
[377502153,1754431839547,-152.0,0.00026851,3]
[377502154,1754431839557,-152.0,0.00026851,3]
[377502155,1754431839567,-152.0,0.00026851,3]
[377502156,1754431839577,-152.0,0.00026851,3]
[377502157,1754431839587,-152.0,0.00026851,3]
[377502158,1754431839598,-152.0,0.00026851,3]
[377502159,1754431839608,-152.0,0.00026851,3]
[377502160,1754431839618,-152.0,0.00026851,3]
[377502161,1754431839634,-152.0,0.00026851,3]
[377502162,1754431839644,-152.0,0.00026851,3]
[377502163,1754431839654,-152.0,0.00026851,3]
[377502164,1754431839664,-152.0,0.00026851,3]
[377502165,1754431839674,-152.0,0.00026851,3]
[377502166,1754431839683,-325.0,0.00026851,3]
[377502167,1754431839693,-325.0,0.00026851,3]
[377502168,1754431839703,-325.0,0.00026851,3]
[377502169,1754431839714,-152.0,0.00026851,3]
[377502170,1754431839724,-152.0,0.00026851,3]
[377502171,1754431839734,-152.0,0.00026851,3]
[377502172,1754431839744,-152.0,0.00026851,3]
[377502173,1754431839754,-152.0,0.00026851,3]
[377502174,1754431839764,-152.0,0.00026851,3]
[377502175,1754431839774,-152.0,0.00026851,3]
[377502176,1754431839784,-152.0,0.00026851,3]
[377502177,1754431839794,-152.0,0.00026851,3]
[377502178,1754431839804,-152.0,0.00026851,3]
[377502179,1754431839815,-152.0,0.00026851,3]
[377502180,1754431839825,-152.0,0.00026851,3]
[377502181,1754431839835,-152.0,0.00026851,3]
[377502182,1754431839847,-152.0,0.00026851,3]
[377502183,1754431839858,-152.0,0.00026851,3]
[377502184,1754431839869,-152.0,0.00026851,3]
[377502185,1754431839880,-152.0,0.00026851,3]
[377502186,1754431839890,-12655.02535889,0.00026851,3]
[377502187,1754431839900,-216.4206905,0.00026851,3]
[377502188,1754431839910,-312.16666667,0.00026851,3]
[377502189,1754431839920,-842.25606042,0.00026851,3]
[377502190,1754431839930,-461.15695721,0.00026851,3]
[377502191,1754431839940,-217.11075,0.000269,3]
[377502192,1754431839950,-8277.28067955,0.00027,2]
[377502195,1754431839961,-217.11075,0.00027025,3]
[377502196,1754431839971,-565.91,0.00027147,2]
[377502197,1754431839980,-217.11075,0.00027149,3]
[377502198,1754431839991,-500.0,0.00027173,2]
[377502199,1754431840001,-500.0,0.00027173,2]
[377502200,1754431840011,-369.36591304,0.00027174,2]
[377502201,1754431840021,-370000.0,0.00027197,2]
[377502202,1754431840031,-156.487942,0.00027274,3]
[377502203,1754431840041,-217.11075,0.00027274,3]
[377502204,1754431840051,-500.0,0.00027373,2]
[377502205,1754431840062,-500.0,0.00027373,2]
[377502206,1754431840072,-502.18745051,0.00027373,2]
[377502207,1754431840082,-500.0,0.00027373,2]
[377502208,1754431840095,-500.0,0.00027373,2]
[377502209,1754431840105,-500.0,0.00027373,2]
[377502210,1754431840116,-500.0,0.00027373,2]
[377502212,1754431840128,-500.0,0.00027373,2]
[377502213,1754431840138,-505.56393485,0.00027373,2]
[377502214,1754431840148,-500.0,0.00027373,2]
[377502215,1754431840159,-500.0,0.00027373,2]
[377502216,1754431840168,-500.0,0.00027373,2]
[377502217,1754431840179,-500.0,0.00027373,2]
[377502218,1754431840188,-500.0,0.00027373,2]
[377502219,1754431840198,-430.33298777,0.00027373,2]
[377502221,1754431840208,-521.19136704,0.00027373,2]
[377502223,1754431840218,-407.27132358,0.00027373,2]
[377502225,1754431840227,-460.0,0.00027397,2]
[377502227,1754431840237,-460.0,0.00027397,2]
[377502229,1754431840247,-460.0,0.00027397,2]
[377502231,1754431840257,-464.19185813,0.00027397,2]
[377502233,1754431840266,-460.0,0.00027397,2]
[377502235,1754431840276,-460.0,0.00027397,2]
[377502237,1754431840285,-460.0,0.00027397,2]
[377502239,1754431840295,-460.0,0.00027397,2]
[377502241,1754431840305,-460.0,0.00027397,2]
[377502243,1754431840315,-460.0,0.00027397,2]
[377502245,1754431840325,-563.58629071,0.00027397,2]
[377502247,1754431840334,-460.0,0.00027397,2]
[377502249,1754431840344,-460.0,0.00027397,2]
[377502251,1754431840353,-460.0,0.00027397,2]
[377502253,1754431840364,-1157.28,0.00027397,2]
[377502255,1754431840375,-460.0,0.00027397,2]
[377502257,1754431840384,-460.0,0.00027397,2]
[377502259,1754431840394,-460.0,0.00027397,2]
[377502260,1754431840404,-460.0,0.00027397,2]
[377502261,1754431840414,-460.0,0.00027397,2]
[377502262,1754431840423,-186.47048675,0.00027397,2]
[377502263,1754431840435,-460.0,0.00027397,2]
[377502264,1754431840447,-460.0,0.00027397,2]
[377502265,1754431840457,-460.0,0.00027397,2]
[377502266,1754431840467,-460.0,0.00027397,2]
[377502268,1754431840477,-460.0,0.00027397,2]
[377502270,1754431840487,-460.0,0.00027397,2]
[377502273,1754431840497,-460.0,0.00027397,2]
[377502275,1754431840508,-460.0,0.00027397,2]
[377502277,1754431840518,-460.0,0.00027397,2]
[377502279,1754431840527,-460.0,0.00027397,2]
[377502281,1754431840537,-460.0,0.00027397,2]
[377502282,1754431840547,-460.0,0.00027397,2]
[377502284,1754431840556,-644.64,0.00027397,2]
[377502286,1754431840566,-1285.85,0.00027397,2]
[377502288,1754431840575,-471.28718924,0.00027397,2]
[377502291,1754431840585,-775.72,0.00027397,2]
[377502294,1754431840594,-460.0,0.00027397,2]
[377502297,1754431840604,-460.0,0.00027397,2]
[377502300,1754431840614,-460.0,0.00027397,2]
[377502303,1754431840625,-460.0,0.00027397,2]
[377502306,1754431840635,-460.0,0.00027397,2]
[377502309,1754431840645,-460.0,0.00027397,2]
[377502312,1754431840654,-460.0,0.00027397,2]
[377502315,1754431840664,-993.1,0.00027397,2]
[377502318,1754431840674,-460.0,0.00027397,2]
[377502322,1754431840684,-460.0,0.00027397,2]
[377502326,1754431840694,-460.0,0.00027397,2]
[377502329,1754431840704,-460.0,0.00027397,2]
[377502332,1754431840714,-460.0,0.00027397,2]
[377502335,1754431840724,-467.85007445,0.00027397,2]
[377502340,1754431840744,-656.82,0.00027397,2]
[377502343,1754431840757,-460.0,0.00027397,2]
[377502348,1754431840769,-460.0,0.00027397,2]
[377502350,1754431840780,-460.0,0.00027397,2]
[377502353,1754431840791,-460.0,0.00027397,2]
[377502357,1754431840802,-460.0,0.00027397,2]
[377502361,1754431840814,-460.0,0.00027397,2]
[377502364,1754431840824,-460.0,0.00027397,2]
[377502367,1754431840837,-460.0,0.00027397,2]
[377502371,1754431840848,-1173.62,0.00027397,2]
[377502374,1754431840859,-460.0,0.00027397,2]
[377502377,1754431840869,-460.0,0.00027397,2]
[377502381,1754431840880,-460.0,0.00027397,2]
[377502384,1754431840891,-460.0,0.00027397,2]
[377502387,1754431840901,-460.0,0.00027397,2]
[377502389,1754431840911,-460.0,0.00027397,2]
[377502392,1754431840921,-460.0,0.00027397,2]
[377502396,1754431840932,-460.0,0.00027397,2]
[377502399,1754431840943,-241.38269865,0.00027397,2]
[377502402,1754431840954,-460.0,0.00027397,2]
[377502405,1754431840964,-460.0,0.00027397,2]
[377502408,1754431840974,-460.0,0.00027397,2]
[377502411,1754431840985,-2378.29,0.00027397,2]
[377502414,1754431840995,-460.0,0.00027397,2]
[377502418,1754431841006,-608.5789419,0.00027397,2]
[377502421,1754431841018,-460.0,0.00027397,2]
[377502424,1754431841028,-460.0,0.00027397,2]
[377502427,1754431841041,-460.0,0.00027397,2]
[377502430,1754431841058,-460.0,0.00027397,2]
[377502433,1754431841069,-460.0,0.00027397,2]
[377502436,1754431841079,-460.0,0.00027397,2]
[377502439,1754431841091,-460.0,0.00027397,2]
[377502444,1754431841102,-460.0,0.00027397,2]
[377502447,1754431841112,-460.0,0.00027397,2]
[377502450,1754431841122,-274.52226462,0.00027397,2]
[377502453,1754431841132,-460.0,0.00027397,2]
[377502456,1754431841143,-707.59,0.00027397,2]
[377502459,1754431841152,-460.0,0.00027397,2]
[377502462,1754431841162,-460.0,0.00027397,2]
[377502465,1754431841173,-474.49005537,0.00027397,2]
[377502468,1754431841183,-460.0,0.00027397,2]
[377502472,1754431841196,-460.0,0.00027397,2]
[377502476,1754431841206,-460.0,0.00027397,2]
[377502479,1754431841217,-460.0,0.00027397,2]
[377502482,1754431841227,-460.0,0.00027397,2]
[377502485,1754431841237,-500.0,0.00027397,2]
[377502488,1754431841247,-460.0,0.00027397,2]
[377502491,1754431841257,-460.0,0.00027397,2]
[377502495,1754431841267,-460.0,0.00027397,2]
[377502498,1754431841279,-460.0,0.00027397,2]
[377502501,1754431841290,-460.0,0.00027397,2]
[377502505,1754431841300,-460.0,0.00027397,2]
[377502508,1754431841311,-460.0,0.00027397,2]
[377502511,1754431841321,-460.0,0.00027397,2]
[377502514,1754431841331,-241.49585398,0.00027397,2]
[377502518,1754431841341,-460.0,0.00027397,2]
[377502520,1754431841352,-460.0,0.00027397,2]
[377502522,1754431841362,-460.0,0.00027397,2]
[377502524,1754431841374,-460.0,0.00027397,2]
[377502526,1754431841384,-460.0,0.00027397,2]
[377502529,1754431841395,-460.0,0.00027397,2]
[377502532,1754431841406,-463.13361287,0.00027397,2]
[377502535,1754431841417,-460.0,0.00027397,2]
[377502538,1754431841427,-460.0,0.00027397,2]
[377502541,1754431841440,-460.0,0.00027397,2]
[377502545,1754431841450,-460.0,0.00027397,2]
[377502548,1754431841461,-460.0,0.00027397,2]
[377502552,1754431841471,-460.0,0.00027397,2]
[377502555,1754431841482,-460.0,0.00027397,2]
[377502558,1754431841493,-779.31,0.00027397,2]
[377502561,1754431841504,-460.0,0.00027397,2]
[377502564,1754431841516,-460.0,0.00027397,2]
[377502567,1754431841526,-466.45176563,0.00027397,2]
[377502570,1754431841536,-460.0,0.00027397,2]
[377502575,1754431841547,-460.0,0.00027397,2]
[377502578,1754431841558,-460.0,0.00027397,2]
[377502581,1754431841569,-460.0,0.00027397,2]
[377502626,1754431841774,-461.07784282,0.00027397,2]
[377502629,1754431841785,-412.99523641,0.00027397,2]
[377502633,1754431841795,-460.0,0.00027397,2]
[377502636,1754431841804,-811.05,0.00027397,2]
[377502638,1754431841813,-460.0,0.00027397,2]
[377502641,1754431841823,-460.0,0.00027397,2]
[377502645,1754431841832,-460.0,0.00027397,2]
[377502648,1754431841842,-666.18,0.00027397,2]
[377502651,1754431841851,-460.0,0.00027397,2]
[377502653,1754431841860,-460.0,0.00027397,2]
[377502656,1754431841870,-460.0,0.00027397,2]
[377502659,1754431841879,-460.0,0.00027397,2]
[377502662,1754431841889,-508.94,0.00027397,2]
[377502665,1754431841898,-460.0,0.00027397,2]
[377502668,1754431841907,-460.0,0.00027397,2]
[377502671,1754431841916,-1509.46,0.00027397,2]
[377502674,1754431841926,-460.0,0.00027397,2]
[377502677,1754431841936,-460.0,0.00027397,2]
[377502680,1754431841945,-500.0,0.00027397,2]
[377502683,1754431841955,-500.0,0.00027397,2]
[377502686,1754431841965,-500.0,0.00027397,2]
[377502689,1754431841975,-460.0,0.00027397,2]
[377502692,1754431841985,-464.94060883,0.00027397,2]
[377502695,1754431841995,-330.2731705,0.00027397,2]
[377502698,1754431842005,-1198.06,0.00027397,2]
[377502701,1754431842016,-460.0,0.00027397,2]
[377502704,1754431842026,-460.0,0.00027397,2]
[377502706,1754431842036,-460.0,0.00027397,2]
[377502708,1754431842046,-1256.79,0.00027397,2]
[377502710,1754431842055,-460.0,0.00027397,2]
[377502712,1754431842065,-513.01,0.00027397,2]
[377502714,1754431842074,-1226.22,0.00027397,2]
[377502717,1754431842084,-460.0,0.00027397,2]
[377502719,1754431842093,-482.37343834,0.00027397,2]
[377502721,1754431842103,-466.14455313,0.00027397,2]
[377502723,1754431842112,-460.0,0.00027397,2]
[377502726,1754431842123,-1680.96,0.00027397,2]
[377502729,1754431842133,-460.0,0.00027397,2]
[377502732,1754431842142,-460.0,0.00027397,2]
[377502735,1754431842152,-4138.95,0.00027397,2]
[377502738,1754431842162,-463.7050291,0.00027397,2]
[377502741,1754431842171,-682.07,0.00027397,2]
[377502744,1754431842181,-460.0,0.00027397,2]
[377502747,1754431842192,-460.0,0.00027397,2]
[377502750,1754431842202,-460.0,0.00027397,2]
[377502753,1754431842212,-464.23388928,0.00027397,2]
[377502756,1754431842222,-460.0,0.00027397,2]
[377502758,1754431842231,-1235.39,0.00027397,2]
[377502760,1754431842241,-460.0,0.00027397,2]
[377502763,1754431842250,-898.9,0.00027397,2]
[377502766,1754431842259,-460.0,0.00027397,2]
[377502769,1754431842268,-666.47,0.00027397,2]
[377502772,1754431842277,-469.99399809,0.00027397,2]
[377502775,1754431842286,-510.88,0.00027397,2]
[377502778,1754431842295,-460.0,0.00027397,2]
[377502781,1754431842305,-815.14,0.00027397,2]
[377502784,1754431842314,-460.0,0.00027397,2]
[377502787,1754431842324,-460.0,0.00027397,2]
[377502790,1754431842333,-460.0,0.00027397,2]
[377502793,1754431842342,-460.0,0.00027397,2]
[377502796,1754431842352,-2003.68,0.00027397,2]
[377502799,1754431842361,-460.0,0.00027397,2]
[377502802,1754431842373,-460.0,0.00027397,2]
[377502805,1754431842382,-460.0,0.00027397,2]
[377502808,1754431842392,-3527.46,0.00027397,2]
[377502811,1754431842402,-467.12078335,0.00027397,2]
[377502814,1754431842411,-1626.32,0.00027397,2]
[377502817,1754431842422,-1135.93,0.00027397,2]
[377502820,1754431842433,-270.20706565,0.00027397,2]
[377502823,1754431842448,-460.0,0.00027397,2]
[377502827,1754431842458,-460.0,0.00027397,2]
[377502830,1754431842467,-460.0,0.00027397,2]
[377502833,1754431842477,-917.23,0.00027397,2]
[377502836,1754431842487,-460.0,0.00027397,2]
[377502839,1754431842507,-909.51,0.00027397,2]
[377502841,1754431842519,-460.0,0.00027397,2]
[377502843,1754431842531,-460.0,0.00027397,2]
[377502845,1754431842542,-251.0116071,0.00027397,2]
[377502847,1754431842553,-1085.69,0.00027397,2]
[377502849,1754431842563,-973.3,0.00027397,2]
[377502851,1754431842574,-460.0,0.00027397,2]
[377502853,1754431842585,-460.0,0.00027397,2]
[377502856,1754431842595,-460.0,0.00027397,2]
[377502858,1754431842606,-460.0,0.00027397,2]
[377502860,1754431842616,-460.0,0.00027397,2]
[377502862,1754431842634,-460.0,0.00027397,2]
[377502864,1754431842645,-553.1,0.00027397,2]
[377502866,1754431842655,-460.0,0.00027397,2]
[377502868,1754431842665,-460.0,0.00027397,2]
[377502870,1754431842676,-460.0,0.00027397,2]
[377502872,1754431842686,-486.78,0.00027397,2]
[377502874,1754431842696,-460.0,0.00027397,2]
[377502876,1754431842706,-460.0,0.00027397,2]
[377502879,1754431842716,-460.0,0.00027397,2]
[377502881,1754431842726,-747.74,0.00027397,2]
[377502883,1754431842737,-460.0,0.00027397,2]
[377502885,1754431842746,-532.48,0.00027397,2]
[377502887,1754431842757,-460.0,0.00027397,2]
[377502889,1754431842767,-460.0,0.00027397,2]
[377502890,1754431842777,-460.0,0.00027397,2]
[377502891,1754431842787,-460.0,0.00027397,2]
[377502893,1754431842798,-1007.23,0.00027397,2]
[377502895,1754431842808,-460.0,0.00027397,2]
[377502897,1754431842819,-601.66,0.00027397,2]
[377502899,1754431842829,-460.0,0.00027397,2]
[377502901,1754431842839,-460.0,0.00027397,2]
[377502903,1754431842849,-528.98,0.00027397,2]
[377502905,1754431842859,-460.0,0.00027397,2]
[377502907,1754431842870,-1770.4,0.00027397,2]
[377502909,1754431842881,-460.0,0.00027397,2]
[377502911,1754431842891,-601.13,0.00027397,2]
[377502913,1754431842901,-460.0,0.00027397,2]
[377502915,1754431842911,-460.0,0.00027397,2]
[377502916,1754431842921,-460.0,0.00027397,2]
[377502919,1754431842931,-460.0,0.00027397,2]
[377502920,1754431842941,-460.0,0.00027397,2]
[377502923,1754431842951,-464.16573078,0.00027397,2]
[377502925,1754431842961,-460.0,0.00027397,2]
[377502928,1754431842971,-460.0,0.00027397,2]
[377502929,1754431842980,-460.0,0.00027397,2]
[377502930,1754431842990,-5087.1,0.00027397,2]
[377502931,1754431843000,-398.63614994,0.00027397,2]
[377502932,1754431843010,-487.8,0.00027397,2]
[377502933,1754431843020,-460.0,0.00027397,2]
[377502934,1754431843031,-318.72511225,0.00027397,2]
[377502935,1754431843041,-460.0,0.00027397,2]
[377502936,1754431843050,-1298.86,0.00027397,2]
[377502937,1754431843060,-698.53,0.00027397,2]
[377502938,1754431843069,-460.0,0.00027397,2]
[377502939,1754431843079,-460.0,0.00027397,2]
[377502940,1754431843091,-460.0,0.00027397,2]
[377502941,1754431843101,-460.0,0.00027397,2]
[377502942,1754431843111,-1105.85,0.00027397,2]
[377502943,1754431843121,-460.0,0.00027397,2]
[377502944,1754431843131,-460.0,0.00027397,2]
[377502945,1754431843141,-460.0,0.00027397,2]
[377502946,1754431843151,-710.96,0.00027397,2]
[377502947,1754431843161,-734.88,0.00027397,2]
[377502948,1754431843171,-460.0,0.00027397,2]
[377502949,1754431843180,-156.487942,0.00027399,3]
[377502950,1754431843190,-217.11075,0.00027399,3]
[377502951,1754431843199,-460.0,0.00027671,2]
[377502952,1754431843209,-460.0,0.00027671,2]
[377502953,1754431843219,-460.0,0.00027671,2]
[377502954,1754431843228,-460.0,0.00027671,2]
[377502955,1754431843237,-460.0,0.00027671,2]
[377502956,1754431843247,-460.0,0.00027671,2]
[377502957,1754431843256,-563.7824126,0.00027671,2]
[377502958,1754431843266,-460.0,0.00027671,2]
[377502959,1754431843275,-460.0,0.00027671,2]
[377502960,1754431843285,-460.0,0.00027671,2]
[377502961,1754431843295,-1157.28,0.00027671,2]
[377502962,1754431843305,-460.0,0.00027671,2]
[377502963,1754431843315,-460.0,0.00027671,2]
[377502964,1754431843325,-460.0,0.00027671,2]
[377502965,1754431843335,-460.0,0.00027671,2]
[377502966,1754431843344,-491.7491041,0.00027671,2]
[377502967,1754431843354,-460.0,0.00027671,2]
[377502968,1754431843363,-557.34488025,0.00027671,2]
[377502969,1754431843374,-471.12566077,0.00027671,2]
[377502970,1754431843383,-474.1285851,0.00027671,2]
[377502971,1754431843392,-460.0,0.00027671,2]
[377502973,1754431843402,-460.0,0.00027671,2]
[377502975,1754431843411,-466.12165614,0.00027671,2]
[377502977,1754431843421,-416.28278913,0.00027671,2]
[377502978,1754431843431,-460.0,0.00027671,2]
[377502979,1754431843446,-460.0,0.00027671,2]
[377502980,1754431843456,-460.0,0.00027671,2]
[377502981,1754431843465,-644.64,0.00027671,2]
[377502982,1754431843474,-1285.85,0.00027671,2]
[377502983,1754431843485,-775.72,0.00027671,2]
[377502984,1754431843493,-317.80467481,0.00027671,2]
[377502985,1754431843503,-460.0,0.00027671,2]
[377502986,1754431843512,-460.0,0.00027671,2]
[377502987,1754431843521,-460.0,0.00027671,2]
[377502988,1754431843531,-460.0,0.00027671,2]
[377502989,1754431843540,-460.0,0.00027671,2]
[377502990,1754431843550,-460.0,0.00027671,2]
[377502991,1754431843559,-993.1,0.00027671,2]
[377502992,1754431843567,-460.0,0.00027671,2]
[377502993,1754431843577,-460.0,0.00027671,2]
[377502994,1754431843585,-460.0,0.00027671,2]
[377502995,1754431843594,-475.00294509,0.00027671,2]